fUSD/lending_fUSD_20250107
["ID","MTS","AMOUNT","RATE_DAILY","PERIOD"]
[348000502,1736263864314,-1842.45,0.0001106,2]
[348000503,1736263864324,-7573.87,0.0001106,2]
[348000504,1736263864335,-1551.13,0.0001106,2]
[348000505,1736263864344,-798.85,0.0001106,2]
[348000506,1736263864355,-1030.35,0.0001106,2]
[348000507,1736263864366,-512.79,0.0001106,2]
[348000508,1736263864375,-818.81,0.0001106,2]
[348000509,1736263864386,-1425.05,0.0001106,2]
[348000510,1736263864396,-1084.42,0.0001106,2]
[348000511,1736263864407,-1500.25,0.0001106,2]
[348000512,1736263864418,-942.4,0.0001106,2]
[348000513,1736263864430,-500.0,0.0001106,2]
[348000514,1736263864440,-7527.44,0.0001106,2]
[348000515,1736263864450,-650.14,0.0001106,2]
[348000516,1736263864461,-1350.85,0.0001106,2]
[348000517,1736263864471,-3410.6,0.0001106,2]
[348000518,1736263864481,-1276.15,0.0001106,2]
[348000519,1736263864491,-932.71,0.0001106,2]
[348000520,1736263864501,-1746.81,0.0001106,2]
[348000521,1736263864511,-958.49,0.0001106,2]
[348000522,1736263864521,-500.0,0.0001106,2]
[348000523,1736263864531,-1669.23,0.0001106,2]
[348000524,1736263864541,-1546.58,0.0001106,2]
[348000525,1736263864551,-984.81,0.0001106,2]
[348000526,1736263864561,-500.0,0.0001106,2]
[348000527,1736263864571,-972.03,0.0001106,2]
[348000528,1736263864581,-1410.46,0.0001106,2]
[348000529,1736263864591,-589.38,0.0001106,2]
[348000530,1736263864601,-739.84,0.0001106,2]
[348000531,1736263864611,-500.0,0.0001106,2]
[348000532,1736263864627,-500.0,0.0001106,2]
[348000533,1736263864639,-1204.56,0.0001106,2]
[348000534,1736263864649,-888.08,0.0001106,2]
[348000535,1736263864659,-1988.71,0.0001106,2]
[348000536,1736263864669,-500.0,0.0001106,2]
[348000537,1736263864681,-500.0,0.0001106,2]
[348000538,1736263864691,-500.0,0.0001106,2]
[348000539,1736263864701,-500.0,0.0001106,2]
[348000540,1736263864712,-773.36,0.0001106,2]
[348000541,1736263864722,-2541.66,0.0001106,2]
[348000542,1736263864731,-500.0,0.0001106,2]
[348000543,1736263864742,-928.03,0.0001106,2]
[348000544,1736263864751,-500.0,0.0001106,2]
[348000545,1736263864760,-666.0,0.0001106,2]
[348000546,1736263864770,-500.0,0.00011061,2]
[348000547,1736263864780,-500.0,0.00011061,2]
[348000548,1736263864790,-556.89,0.00011061,2]
[348000549,1736263864800,-500.0,0.00011061,2]
[348000550,1736263864810,-500.0,0.00011061,2]
[348000551,1736263864821,-500.0,0.00011061,2]
[348000552,1736263864830,-610.77,0.00011061,2]
[348000553,1736263864840,-632.11,0.00011061,2]
[348000554,1736263864849,-720.43,0.00011061,2]
[348000555,1736263864859,-565.46,0.00011061,2]
[348000556,1736263864871,-500.0,0.00011061,2]
[348000557,1736263864883,-500.0,0.00011061,2]
[348000558,1736263864893,-712.94,0.00011061,2]
[348000559,1736263864903,-500.0,0.00011061,2]
[348000560,1736263864914,-549.28,0.00011061,2]
[348000561,1736263864924,-500.0,0.00011061,2]
[348000562,1736263864934,-805.41,0.00011061,2]
[348000563,1736263864944,-500.0,0.00011061,2]
[348000564,1736263864954,-500.0,0.00011061,2]
[348000565,1736263864964,-500.0,0.00011061,2]
[348000566,1736263864974,-664.53,0.00011061,2]
[348000567,1736263864984,-500.0,0.00011061,2]
[348000568,1736263864993,-500.0,0.00011061,2]
[348000569,1736263865003,-599.27,0.00011061,2]
[348000570,1736263865013,-571.58,0.00011061,2]
[348000571,1736263865023,-500.0,0.00011061,2]
[348000572,1736263865032,-734.19,0.00011061,2]
[348000573,1736263865042,-500.0,0.00011061,2]
[348000574,1736263865051,-500.0,0.00011061,2]
[348000575,1736263865060,-500.0,0.00011061,2]
[348000576,1736263865070,-500.0,0.00011061,2]
[348000577,1736263865079,-500.0,0.00011061,2]
[348000578,1736263865088,-671.16,0.00011061,2]
[348000579,1736263865098,-525.37,0.00011061,2]
[348000580,1736263865107,-500.0,0.00011061,2]
[348000581,1736263865117,-500.0,0.00011061,2]
[348000582,1736263865132,-500.0,0.00011061,2]
[348000583,1736263865142,-500.0,0.00011061,2]
[348000584,1736263865151,-765.69,0.00011061,2]
[348000585,1736263865161,-500.0,0.00011061,2]
[348000586,1736263865171,-500.0,0.00011061,2]
[348000587,1736263865181,-500.0,0.00011061,2]
[348000588,1736263865191,-520.28,0.00011061,2]
[348000589,1736263865204,-573.98,0.00011061,2]
[348000590,1736263865214,-566.99,0.00011061,2]
[348000591,1736263865224,-524.42,0.00011061,2]
[348000592,1736263865234,-509.08,0.00011061,2]
[348000593,1736263865244,-534.75,0.00011061,2]
[348000594,1736263865254,-906.3,0.00011061,2]
[348000595,1736263865263,-500.0,0.00011061,2]
[348000596,1736263865274,-500.0,0.00011061,2]
[348000597,1736263865284,-508.55,0.00011061,2]
[348000598,1736263865294,-500.0,0.00011061,2]
[348000599,1736263865304,-500.0,0.00011061,2]
[348000600,1736263865314,-571.55,0.00011061,2]
[348000601,1736263865324,-884.36,0.00011061,2]
[348000602,1736263865334,-500.0,0.00011061,2]
[348000603,1736263865343,-500.0,0.00011061,2]
[348000604,1736263865353,-500.0,0.00011061,2]
[348000605,1736263865364,-852.43,0.00011061,2]
[348000606,1736263865382,-500.0,0.00011061,2]
[348000607,1736263865392,-500.0,0.00011061,2]
[348000608,1736263865403,-548.31,0.00011061,2]
[348000609,1736263865414,-500.0,0.00011061,2]
[348000610,1736263865424,-568.64,0.00011061,2]
[348000611,1736263865434,-500.0,0.00011061,2]
[348000612,1736263865444,-483.46269313,0.00011061,2]
[348000613,1736263865454,-500.0,0.00011061,2]
[348000614,1736263865464,-500.0,0.00011061,2]
[348000615,1736263865473,-516.55,0.00011061,2]
[348000616,1736263865483,-500.0,0.00011061,2]
[348000617,1736263865493,-500.0,0.00011061,2]
[348000618,1736263865503,-500.0,0.00011061,2]
[348000619,1736263865513,-500.0,0.00011061,2]
[348000620,1736263865523,-599.41,0.00011061,2]
[348000621,1736263865533,-811.0,0.00011061,2]
[348000622,1736263865543,-500.0,0.00011061,2]
[348000623,1736263865553,-500.0,0.00011061,2]
[348000624,1736263865563,-991.0,0.00011061,2]
[348000625,1736263865573,-500.0,0.00011061,2]
[348000626,1736263865583,-500.0,0.00011061,2]
[348000627,1736263865593,-550.06,0.00011061,2]
[348000628,1736263865603,-597.15,0.00011061,2]
[348000629,1736263865613,-620.73,0.00011061,2]
[348000630,1736263865627,-778.27,0.00011061,2]
[348000631,1736263865637,-500.0,0.00011061,2]
[348000632,1736263865646,-564.27,0.00011061,2]
[348000633,1736263865656,-389.08587154,0.00011061,2]
[348000634,1736263865666,-500.0,0.00011061,2]
[348000635,1736263865676,-523.85,0.00011061,2]
[348000636,1736263865686,-503.12,0.00011061,2]
[348000637,1736263865696,-513.18,0.00011061,2]
[348000638,1736263865706,-500.0,0.00011061,2]
[348000639,1736263865716,-531.76,0.00011061,2]
[348000640,1736263865726,-503.91,0.00011061,2]
[348000641,1736263865736,-561.53,0.00011061,2]
[348000642,1736263865746,-570.52,0.00011061,2]
[348000643,1736263865756,-2075.27,0.00011061,2]
[348000644,1736263865767,-500.0,0.00011061,2]
[348000645,1736263865776,-500.0,0.00011061,2]
[348000646,1736263865786,-500.0,0.00011061,2]
[348000647,1736263865797,-500.0,0.00011061,2]
[348000648,1736263865806,-1754.46,0.00011061,2]
[348000649,1736263865816,-500.0,0.00011061,2]
[348000650,1736263865826,-500.0,0.00011061,2]
[348000651,1736263865836,-500.0,0.00011061,2]
[348000652,1736263865845,-500.0,0.00011061,2]
[348000653,1736263865855,-500.0,0.00011061,2]
[348000654,1736263865865,-500.0,0.00011061,2]
[348000655,1736263865878,-557.43,0.00011061,2]
[348000656,1736263865887,-500.0,0.00011061,2]
[348000657,1736263865897,-588.14,0.00011061,2]
[348000658,1736263865907,-500.0,0.00011061,2]
[348000659,1736263865918,-500.0,0.00011061,2]
[348000660,1736263865928,-548.77,0.00011061,2]
[348000661,1736263865939,-656.79,0.00011061,2]
[348000662,1736263865949,-555.13,0.00011061,2]
[348000663,1736263865959,-500.0,0.00011061,2]
[348000664,1736263865969,-575.23,0.00011061,2]
[348000665,1736263865978,-500.0,0.00011061,2]
[348000666,1736263865988,-500.0,0.00011061,2]
[348000667,1736263865997,-500.0,0.00011061,2]
[348000668,1736263866007,-500.0,0.00011061,2]
[348000669,1736263866016,-1047.1,0.00011061,2]
[348000670,1736263866025,-619.43,0.00011061,2]
[348000671,1736263866035,-567.84,0.00011061,2]
[348000672,1736263866045,-514.55,0.00011061,2]
[348000673,1736263866055,-625.86,0.00011061,2]
[348000674,1736263866064,-500.0,0.00011061,2]
[348000675,1736263866234,-834.65,0.00011061,2]
[348000676,1736263866245,-731.55,0.00011061,2]
[348000677,1736263866255,-580.77,0.00011061,2]
[348000678,1736263866265,-500.0,0.00011061,2]
[348000679,1736263866279,-167.56929399,0.00011061,2]
[348000680,1736263866289,-655.93,0.00011061,2]
[348000681,1736263866299,-500.0,0.00011061,2]
[348000682,1736263866309,-500.0,0.00011061,2]
[348000683,1736263866320,-500.0,0.00011061,2]
[348000684,1736263866330,-837.41,0.00011061,2]
[348000685,1736263866340,-500.0,0.00011061,2]
[348000686,1736263866350,-500.0,0.00011061,2]
[348000687,1736263866360,-751.57,0.00011061,2]
[348000688,1736263866371,-553.46,0.00011061,2]
[348000689,1736263866382,-1406.87,0.00011061,2]
[348000690,1736263866392,-908.17,0.00011061,2]
[348000691,1736263866402,-621.0,0.00011061,2]
[348000692,1736263866412,-1446.51,0.00011061,2]
[348000693,1736263866422,-549.99,0.00011061,2]
[348000694,1736263866432,-981.24,0.00011061,2]
[348000695,1736263866442,-500.0,0.00011061,2]
[348000696,1736263866453,-1988.67,0.00011061,2]
[348000697,1736263866462,-741.68,0.00011061,2]
[348000698,1736263866473,-500.0,0.00011061,2]
[348000699,1736263866483,-616.1,0.00011061,2]
[348000700,1736263866493,-500.0,0.00011061,2]
[348000701,1736263866503,-500.0,0.00011061,2]
[348000702,1736263866512,-863.83,0.00011061,2]
[348000703,1736263866522,-500.0,0.00011061,2]
[348000704,1736263866532,-500.0,0.00011061,2]
[348000705,1736263866542,-782.39,0.00011061,2]
[348000706,1736263866552,-649.32,0.00011061,2]
[348000707,1736263866562,-579.24,0.00011061,2]
[348000708,1736263866571,-1155.68,0.00011061,2]
[348000709,1736263866581,-500.0,0.00011061,2]
[348000710,1736263866590,-820.77,0.00011061,2]
[348000711,1736263866599,-500.0,0.00011061,2]
[348000712,1736263866609,-1040.81,0.00011061,2]
[348000713,1736263866619,-726.45,0.00011061,2]
[348000714,1736263866633,-805.89,0.00011061,2]
[348000715,1736263866642,-500.0,0.00011061,2]
[348000716,1736263866653,-527.55,0.00011061,2]
[348000717,1736263866665,-1107.87,0.00011061,2]
[348000718,1736263866675,-1785.31,0.00011061,2]
[348000719,1736263866685,-500.0,0.00011061,2]
[348000720,1736263866695,-690.17,0.00011061,2]
[348000721,1736263866704,-875.02,0.00011061,2]
[348000722,1736263866714,-2268.04,0.00011061,2]
[348000723,1736263866724,-631.68379142,0.00011061,2]
[348000724,1736263866734,-614.67,0.00011061,2]
[348000725,1736263866743,-500.0,0.00011061,2]
[348000726,1736263866752,-500.0,0.00011061,2]
[348000727,1736263866761,-556.86,0.00011061,2]
[348000728,1736263866771,-1180.53,0.00011061,2]
[348000729,1736263866780,-500.0,0.00011061,2]
[348000730,1736263866790,-500.0,0.00011061,2]
[348000731,1736263866800,-633.16,0.00011061,2]
[348000732,1736263866809,-776.12,0.00011061,2]
[348000733,1736263866818,-500.0,0.00011061,2]
[348000734,1736263866827,-578.66,0.00011061,2]
[348000735,1736263866837,-771.34,0.00011061,2]
[348000736,1736263866847,-500.0,0.00011061,2]
[348000737,1736263866856,-1479.16,0.00011061,2]
[348000738,1736263866866,-612.39,0.00011061,2]
[348000739,1736263866878,-1118.43,0.00011061,2]
[348000740,1736263866888,-630.3,0.00011061,2]
[348000741,1736263866897,-509.3,0.00011061,2]
[348000742,1736263866907,-2871.69,0.00011061,2]
[348000743,1736263866918,-615.17,0.00011061,2]
[348000744,1736263866928,-582.87,0.00011061,2]
[348000745,1736263866937,-1115.31,0.00011061,2]
[348000746,1736263866947,-1021.43,0.00011061,2]
[348000747,1736263866956,-500.0,0.00011061,2]
[348000748,1736263866966,-578.36,0.00011061,2]
[348000749,1736263866975,-516.19,0.00011061,2]
[348000750,1736263866984,-1555.21,0.00011061,2]
[348000751,1736263866993,-884.89,0.00011061,2]
[348000752,1736263867003,-500.0,0.00011061,2]
[348000753,1736263867012,-668.69,0.00011061,2]
[348000754,1736263867023,-650.96,0.00011061,2]
[348000755,1736263867033,-2547.52,0.00011061,2]
[348000756,1736263867043,-581.37,0.00011061,2]
[348000757,1736263867052,-985.91,0.00011061,2]
[348000758,1736263867062,-500.0,0.00011061,2]
[348000759,1736263867072,-684.5,0.00011061,2]
[348000760,1736263867081,-500.0,0.00011061,2]
[348000761,1736263867091,-500.0,0.00011061,2]
[348000762,1736263867101,-500.0,0.00011061,2]
[348000763,1736263867111,-942.88,0.00011061,2]
[348000764,1736263867122,-500.0,0.00011061,2]
[348000765,1736263867132,-1636.98,0.00011061,2]
[348000766,1736263867142,-500.0,0.00011061,2]
[348000767,1736263867152,-4523.36,0.00011061,2]
[348000768,1736263867162,-257.8821036,0.00011061,2]
[348000769,1736263867172,-3027.15,0.00011061,2]
[348000770,1736263867181,-702.19,0.00011061,2]
[348000771,1736263867191,-500.0,0.00011061,2]
[348000772,1736263867203,-500.0,0.00011061,2]
[348000773,1736263867213,-500.0,0.00011061,2]
[348000774,1736263867223,-500.0,0.00011061,2]
[348000775,1736263867232,-500.0,0.00011061,2]
[348000776,1736263867243,-1968.16,0.00011061,2]
[348000777,1736263867252,-984.26,0.00011061,2]
[348000778,1736263867262,-1440.07,0.00011061,2]
[348000779,1736263867272,-500.0,0.00011061,2]
[348000780,1736263867283,-2109.75,0.00011061,2]
[348000781,1736263867293,-650.12,0.00011061,2]
[348000782,1736263867303,-631.0,0.00011061,2]
[348000783,1736263867313,-600.1,0.00011061,2]
[348000784,1736263867323,-500.0,0.00011061,2]
[348000785,1736263867332,-500.0,0.00011061,2]
[348000786,1736263867342,-6413.79,0.00011061,2]
[348000787,1736263867351,-500.0,0.00011061,2]
[348000788,1736263867361,-649.63,0.00011061,2]
[348000789,1736263867372,-500.0,0.00011061,2]
[348000790,1736263867381,-2461.78,0.00011061,2]
[348000791,1736263867390,-1979.41,0.00011061,2]
[348000792,1736263867399,-597.54,0.00011061,2]
[348000793,1736263867408,-500.0,0.00011061,2]
[348000794,1736263867417,-500.0,0.00011061,2]
[348000795,1736263867426,-712.87,0.00011061,2]
[348000796,1736263867440,-500.0,0.00011061,2]
[348000797,1736263867456,-500.0,0.00011061,2]
[348000798,1736263867471,-1002.51,0.00011061,2]
[348000799,1736263867488,-3266.67,0.00011061,2]
[348000800,1736263867506,-257.67071372,0.00011061,2]
[348000801,1736263867521,-552.42,0.00011061,2]
[348000802,1736263867538,-3614.29,0.00011061,2]
[348000803,1736263867556,-500.0,0.00011061,2]
[348000804,1736263867574,-604.64,0.00011061,2]
[348000805,1736263867593,-687.61,0.00011061,2]
[348000806,1736263867609,-500.0,0.00011061,2]
[348000807,1736263867631,-1320.68,0.00011061,2]
[348000808,1736263867646,-2385.14,0.00011061,2]
[348000809,1736263867662,-500.0,0.00011061,2]
[348000810,1736263867678,-979.45,0.00011061,2]
[348000811,1736263867693,-500.0,0.00011061,2]
[348000812,1736263867710,-5903.24,0.00011061,2]
[348000813,1736263867723,-500.0,0.00011061,2]
[348000814,1736263867738,-1534.65,0.00011062,2]
[348000815,1736263867752,-2164.37,0.00011062,2]
[348000816,1736263867768,-1978.2,0.00011062,2]
[348000817,1736263867783,-933.31,0.00011062,2]
[348000818,1736263867797,-2121.86,0.00011062,2]
[348000819,1736263867811,-1439.55,0.00011062,2]
[348000820,1736263867825,-2440.6,0.00011062,2]
[348000821,1736263867840,-2163.32,0.00011062,2]
[348000822,1736263867855,-2806.86,0.00011062,2]
[348000823,1736263867869,-2814.6,0.00011062,2]
[348000824,1736263867886,-3594.7,0.00011062,2]
[348000825,1736263867900,-6153.33,0.00011062,2]
[348000826,1736263867916,-12102.56,0.00011062,2]
[348000827,1736263867931,-1588.59169286,0.00011062,2]
[348000828,1736263867945,-1495.29,0.00011064,2]
[348000829,1736263867960,-3653.97,0.00011064,2]
[348000830,1736263867974,-500.0,0.00011064,2]
[348000831,1736263867988,-1502.21,0.00011064,2]
[348000832,1736263868001,-1958.4,0.00011064,2]
[348000833,1736263868019,-786.0,0.00011064,2]
[348000834,1736263868032,-2582.24,0.00011064,2]
[348000835,1736263868048,-1469.08,0.00011064,2]
[348000836,1736263868062,-1837.67,0.00011064,2]
[348000837,1736263868076,-1247.74,0.00011064,2]
[348000838,1736263868090,-4398.53,0.00011064,2]
[348000839,1736263868105,-3587.21,0.00011064,2]
[348000840,1736263868119,-3180.23,0.00011064,2]
[348000841,1736263868136,-3591.59,0.00011064,2]
[348000842,1736263868151,-663.45,0.00011064,2]
[348000843,1736263868166,-5338.56,0.00011064,2]
[348000844,1736263868181,-1222.58,0.00011064,2]
[348000845,1736263868197,-150.0,0.00011076,2]
[348000846,1736263868212,-836.5500001,0.00011076,2]
[348000847,1736263868227,-150.0,0.00011092,2]
[348000848,1736263868241,-666.0,0.00011097,2]
[348000849,1736263868256,-666.0,0.00011098,2]
[348000850,1736263868271,-666.0,0.00011098,2]
[348000851,1736263868288,-87719.6310313,0.00011098,2]
[348000852,1736263868303,-17591.72010839,0.00011099,2]
[348000853,1736263868318,-17591.72010835,0.00011099,2]
[348000854,1736263868333,-17591.72010835,0.00011099,2]
[348000855,1736263868348,-17591.72010835,0.00011099,2]
[348000856,1736263868363,-17591.72010835,0.00011099,2]
[348000857,1736263868383,-17591.72010835,0.00011099,2]
[348000858,1736263868398,-150.0,0.00011102,2]
[348000859,1736263868414,-652.2629634,0.00011107,2]
[348000860,1736263868429,-17591.72010835,0.00011107,2]
[348000861,1736263868444,-500.0,0.00011115,2]
[348000862,1736263868459,-2000.0,0.00011115,2]
[348000863,1736263868474,-500.0,0.00011115,2]
[348000864,1736263868489,-200.0,0.00011115,2]
[348000865,1736263868504,-429.6623773,0.00011126,2]
[348000866,1736263868518,-177.894438,0.0001113,2]
[348000867,1736263868533,-489.1165,0.00011131,2]
[348000868,1736263868548,-200.0,0.00011167,2]
[348000869,1736263868562,-1067.55202526,0.00011167,2]
[348000870,1736263868575,-580.13759541,0.00011168,2]
[348000871,1736263868589,-200.0,0.00011168,2]
[348000872,1736263868604,-1019.79073379,0.00011168,2]
[348000873,1736263868618,-561.3813854,0.00011169,2]
[348000874,1736263868637,-9481.17316393,0.00011169,2]
[348000875,1736263868651,-161.05129517,0.0001117,2]
[348000876,1736263868665,-659.88451732,0.0001117,2]
[348000877,1736263868680,-580.13759541,0.0001117,2]
[348000878,1736263868695,-4472.80371454,0.00011171,2]
[348000879,1736263868709,-711.78074225,0.00011171,2]
[348000880,1736263868724,-561.3813854,0.00011171,2]
[348000881,1736263868738,-4472.80371454,0.00011174,2]
[348000882,1736263868753,-9481.17316393,0.00011177,2]
[348000883,1736263868766,-1067.55202526,0.00011178,2]
[348000884,1736263868781,-4472.80371454,0.00011178,2]
[348000885,1736263868796,-1483.15662404,0.00011178,2]
[348000886,1736263868810,-1067.55202526,0.00011181,2]
[348000887,1736263868825,-9481.17316393,0.00011181,2]
[348000888,1736263868839,-2602.90260961,0.00011182,2]
[348000889,1736263868855,-561.3813854,0.00011182,2]
[348000890,1736263868867,-200.0,0.00011183,2]
[348000891,1736263868880,-4472.80371454,0.00011184,2]
[348000892,1736263868890,-580.13759541,0.00011184,2]
[348000893,1736263868899,-4472.80371454,0.00011185,2]
[348000894,1736263868909,-1483.15662404,0.00011185,2]
[348000895,1736263868919,-561.3813854,0.00011186,2]
[348000896,1736263868929,-561.3813854,0.00011186,2]
[348000897,1736263868939,-1019.79073379,0.00011187,2]
[348000898,1736263868950,-2602.90260961,0.00011187,2]
[348000899,1736263868960,-1019.79073379,0.00011187,2]
[348000900,1736263868970,-1483.15662404,0.00011188,2]
[348000901,1736263868980,-580.13759541,0.00011188,2]
[348000902,1736263868990,-9481.17316393,0.00011189,2]
[348000903,1736263868999,-1067.55202526,0.0001119,2]
[348000904,1736263869009,-2602.90260961,0.0001119,2]
[348000905,1736263869019,-2602.90260961,0.0001119,2]
[348000906,1736263869028,-561.3813854,0.00011191,2]
[348000907,1736263869037,-1483.15662404,0.00011191,2]
[348000908,1736263869048,-711.78074225,0.00011192,2]
[348000909,1736263869057,-1019.79073379,0.00011192,2]
[348000910,1736263869067,-1483.15662404,0.00011192,2]
[348000911,1736263869076,-711.78074225,0.00011195,2]
[348000912,1736263869086,-9481.17316393,0.00011195,2]
[348000913,1736263869096,-711.78074225,0.00011195,2]
[348000914,1736263869467,-580.13759541,0.00011195,2]
[348000915,1736263869488,-4472.80371454,0.00011196,2]
[348000916,1736263869522,-9481.17316393,0.00011196,2]
[348000917,1736263869536,-1483.15662404,0.00011196,2]
[348000918,1736263869546,-711.78074225,0.00011196,2]
[348000919,1736263869555,-1067.55202526,0.00011196,2]
[348000920,1736263869565,-1019.79073379,0.00011197,2]
[348000921,1736263869574,-2602.90260961,0.00011197,2]
[348000922,1736263869584,-580.13759541,0.00011197,2]
[348000923,1736263869593,-2602.90260961,0.00011197,2]
[348000924,1736263869603,-1019.79073379,0.00011199,2]
[348000925,1736263869612,-711.78074225,0.00011199,2]
[348000926,1736263869624,-1067.55202526,0.00011199,2]
[348000927,1736263869633,-1588.59169286,0.00011203,2]
[348000928,1736263869643,-502.94,0.00011219,2]
[348000929,1736263869652,-150.0,0.00011231,2]
[348000930,1736263869662,-669.53150814,0.00011232,2]
[348000931,1736263869672,-4515.55,0.00011233,2]
[348000932,1736263869681,-1828.4,0.00011233,2]
[348000933,1736263869691,-5701.5,0.00011233,2]
[348000934,1736263869702,-3083.97,0.00011233,2]
[348000935,1736263869711,-5138.6,0.00011233,2]
[348000936,1736263869720,-16018.72,0.00011233,2]
[348000937,1736263869730,-830.06,0.00011233,2]
[348000938,1736263869740,-1787.15,0.00011233,2]
[348000939,1736263869749,-5133.87,0.00011233,2]
[348000940,1736263869759,-2801.75,0.00011233,2]
[348000941,1736263869768,-8554.94,0.00011233,2]
[348000942,1736263869778,-4563.86,0.00011233,2]
[348000943,1736263869787,-1496.82,0.00011233,2]
[348000944,1736263869797,-860.4,0.00011233,2]
[348000945,1736263869806,-4689.52,0.00011233,2]
[348000946,1736263869815,-2860.17,0.00011233,2]
[348000947,1736263869825,-944.74,0.00011233,2]
[348000948,1736263869835,-7170.94,0.00011233,2]
[348000949,1736263869844,-9213.36,0.00011233,2]
[348000950,1736263869853,-151.0,0.00011233,2]
[348000951,1736263869863,-540.9,0.00011233,2]
[348000952,1736263869874,-824.76,0.00011233,2]
[348000953,1736263869887,-500.0,0.00011233,2]
[348000954,1736263869896,-3420.5,0.00011233,2]
[348000955,1736263869910,-874.68,0.00011233,2]
[348000956,1736263869921,-664.73,0.00011233,2]
[348000957,1736263869930,-792.91,0.00011233,2]
[348000958,1736263869941,-912.97,0.00011233,2]
[348000959,1736263869952,-425.2928,0.00011235,2]
[348000960,1736263869961,-1000.0,0.00011237,2]
[348000961,1736263869971,-150.0,0.00011242,2]
[348000962,1736263869980,-177.894438,0.00011264,2]
[348000963,1736263869991,-150.0,0.00011264,2]
[348000964,1736263870001,-151.76,0.00011287,2]
[348000965,1736263870010,-54067.08541294,0.00011297,2]
[348000966,1736263870020,-1288.0,0.000113,2]
[348000967,1736263870030,-324.02293673,0.00011307,2]
[348000968,1736263870040,-150.0,0.00011326,2]
[348000969,1736263870050,-17591.72010835,0.00011331,2]
[348000970,1736263870059,-1965.62,0.00011334,2]
[348000971,1736263870068,-1441.85,0.00011334,2]
[348000972,1736263870078,-2031.12,0.00011334,2]
[348000973,1736263870088,-584.14,0.00011334,2]
[348000974,1736263870097,-204.34949237,0.00011334,2]
[348000975,1736263870107,-1347.38,0.00011334,2]
[348000976,1736263870116,-1337.9,0.00011334,2]
[348000977,1736263870126,-500.0,0.00011334,2]
[348000978,1736263870135,-726.31,0.00011334,2]
[348000979,1736263870145,-617.27,0.00011334,2]
[348000980,1736263870155,-1113.64,0.00011334,2]
[348000981,1736263870164,-519.08,0.00011334,2]
[348000982,1736263870173,-682.82,0.00011334,2]
[348000983,1736263870183,-767.32,0.00011334,2]
[348000984,1736263870194,-1790.9,0.00011334,2]
[348000985,1736263870204,-1842.07,0.00011334,2]
[348000986,1736263870213,-2333.72,0.00011334,2]
[348000987,1736263870223,-1453.48,0.00011334,2]
[348000988,1736263870232,-782.9,0.00011334,2]
[348000989,1736263870243,-1135.22,0.00011334,2]
[348000990,1736263870252,-500.0,0.00011334,2]
[348000991,1736263870262,-908.06,0.00011334,2]
[348000992,1736263870272,-925.35,0.00011334,2]
[348000993,1736263870282,-877.63,0.00011334,2]
[348000994,1736263870291,-579.05,0.00011334,2]
[348000995,1736263870301,-795.6,0.00011334,2]
[348000996,1736263870311,-1845.34,0.00011334,2]
[348000997,1736263870320,-2158.61,0.00011334,2]
[348000998,1736263870329,-714.94,0.00011334,2]
[348000999,1736263870339,-1826.77,0.00011334,2]
[348001000,1736263870349,-849.05,0.00011334,2]
[348001001,1736263870358,-636.08,0.00011334,2]